[Event "WYCC 2018 O14"]
[Site "Halkidiki"]
[Date "2018.10.24"]
[Round "6"]
[White "Marn, Jan"]
[Black "Dwyer, Daniel"]
[Result "1-0"]
[ECO "A06"]
[WhiteElo "2125"]
[BlackElo "2133"]
[Annotator "ChessBase"]
[PlyCount "157"]
[EventDate "2018.10.20"]
[EventType "swiss"]
[EventCountry "GRE"]
[SourceTitle "playchess.com"]
[Source "ChessBase"]
[SourceQuality "1"]
[TimeControl "40/5400+30:1800+30"]

1. Nf3 {[%emt 0:00:00]} d5 {[%emt 0:00:19]} 2. g3 {[%emt 0:00:00]} Nf6 {[%emt 0:00:32]} 3. Bg2 {[%emt 0:00:00]} Bf5 {[%emt 0:00:41]} 4. O-O {[%emt 0:00:17]} e6 {[%emt 0:00:21]} 5. d3 {[%emt 0:03:19]} h6 {[%emt 0:04:00]} 6. Nbd2 {[%emt 0:00:51]} Be7 {[%emt 0:04:24]} 7. Qe1 {[%emt 0:00:42]} O-O {[%emt 0:02:26]} 8. e4 {[%emt 0:00:10]} Bh7 {[%emt 0:00:27]} 9. Qe2 {[%emt 0:02:29]} c5 {[%emt 0:02:29]} 10. e5 {[%emt 0:03:46]} Nfd7 {[%emt 0:04:29]} 11. Re1 {[%emt 0:00:09]} Nc6 {[%emt 0:01:54]} 12. Nf1 {[%emt 0:00:13]} Rc8 {[%emt 0:02:52]} 13. c3 {[%emt 0:13:49]} b5 {[%emt 0:09:16]} 14. h4 {[%emt 0:11:57]} Nb6 {[%emt 0:11:51]} 15. N1h2 {[%emt 0:03:56]} d4 {[%emt 0:14:54]} 16. Rd1 {[%emt 0:07:43]} Na4 {[%emt 0:00:36]} 17. cxd4 {[%emt 0:00:35]} cxd4 {[%emt 0:07:28]} 18. Ne1 {[%emt 0:02:26]} Qc7 {[%emt 0:01:34]} 19. Nhf3 Nb4 20. Nxd4 {[%emt 0:04:20]} Qb6 {[%emt 0:03:58]} 21. Nb3 {[%emt 0:02:32]} Rfd8 22. Be3 {[%emt 0:08:28]} Qb8 {[%emt 0:02:28]} 23. f4 {[%emt 0:12:12]} Nc5 24. Nxc5 Bxc5 {[%emt 0:05:46]} 25. Bxc5 {[%emt 0:00:35]} Rxc5 {[%emt 0:00:04]} 26. a3 {[%emt 0:08:04]} Nc6 27. b4 {[%emt 0:00:13]} Nd4 {[%emt 0:05:20]} 28. Qb2 Rc7 {[%emt 0:00:42]} 29. Rac1 {[%emt 0:00:45]} Nf5 {[%emt 0:03:32]} 30. Kh2 {[%emt 0:02:07]} Rxc1 31. Rxc1 {[%emt 0:06:11]} Ne3 {[%emt 0:04:31]} 32. Qe2 {[%emt 0:01:49]} Nxg2 {[%emt 0:00:49]} 33. Kxg2 {[%emt 0:00:07]} Qb7+ {[%emt 0:00:34]} 34. Kh2 {[%emt 0:01:04]} Qd5 {[%emt 0:03:06]} 35. Rc3 {[%emt 0:00:11]} Qd4 {[%emt 0:00:42]} 36. Qc2 {[%emt 0:00:14]} Bf5 {[%emt 0:00:47]} 37. Qd2 a6 {[%emt 0:01:15]} 38. Nf3 {[%emt 0:06:25]} Qd5 {[%emt 0:00:57]} 39. Ne1 {[%emt 0:00:21]} Qe4 {[%emt 0:01:38]} 40. Qf2 {[%emt 0:00:00]} Qd5 {[%emt 0:00:00]} 41. Kg1 {[%emt 0:17:55]} Kh7 {[%emt 0:03:52]} 42. Kh2 {[%emt 0:02:08]} Kg8 {[%emt 0:00:07]} 43. Qd2 {[%emt 0:02:45]} Qe4 {[%emt 0:03:27]} 44. Rc8 Qd5 {[%emt 0:00:08]} 45. Rxd8+ {[%emt 0:03:45]} Qxd8 46. Qe2 {[%emt 0:01:25]} Qd4 {[%emt 0:01:51]} 47. Ng2 {[%emt 0:03:35]} Bxd3 {[%emt 0:02:02]} 48. Qd2 {[%emt 0:00:17]} Qc4 {[%emt 0:01:30]} 49. Qe3 {[%emt 0:02:36]} Be4 {[%emt 0:02:36]} 50. Ne1 {[%emt 0:00:12]} Qa2+ {[%emt 0:00:39]} 51. Kg1 {[%emt 0:00:14]} Bd5 {[%emt 0:00:16]} 52. Qc3 {[%emt 0:00:53]} Qe2 {[%emt 0:01:10]} 53. Qc8+ {[%emt 0:00:04]} Kh7 {[%emt 0:00:16]} 54. Qc2+ {[%emt 0:00:04]} Qxc2 {[%emt 0:02:58]} 55. Nxc2 {[%emt 0:00:04]} Kg6 {[%emt 0:00:14]} 56. Ne3 {[%emt 0:01:26]} Be4 {[%emt 0:01:56]} 57. Kf2 {[%emt 0:00:12]} f6 {[%emt 0:00:34]} 58. exf6 {[%emt 0:01:51]} gxf6 {[%emt 0:01:46]} 59. g4 {[%emt 0:01:19]} f5 {[%emt 0:01:26]} 60. g5 {[%emt 0:00:20]} hxg5 {[%emt 0:00:40]} 61. hxg5 {[%emt 0:00:04]} e5 {[%emt 0:00:22]} 62. Kg3 {[%emt 0:00:29]} exf4+ {[%emt 0:01:23]} 63. Kxf4 {[%emt 0:00:05]} Bd3 {[%emt 0:04:47]} 64. Nd5 {[%emt 0:00:06]} Kf7 {[%emt 0:01:11]} 65. Nc7 {[%emt 0:00:09]} Kg6 {[%emt 0:01:27]} 66. Nxa6 {[%emt 0:00:12]} Bc4 {[%emt 0:00:56]} 67. Nc5 {[%emt 0:00:47]} Ba2 {[%emt 0:00:40]} 68. Nd7 {[%emt 0:01:19]} Bb1 {[%emt 0:01:04]} 69. Ne5+ {[%emt 0:00:08]} Kg7 {[%emt 0:00:54]} 70. Nf3 {[%emt 0:00:35]} Kf7 {[%emt 0:01:54]} 71. Nd4 {[%emt 0:00:07]} Bd3 {[%emt 0:00:19]} 72. Nxf5 {[%emt 0:00:12]} Ke6 {[%emt 0:00:10]} 73. Ne3 {[%emt 0:00:57]} Bg6 {[%emt 0:00:40]} 74. Ng4 {[%emt 0:00:07]} Kd5 {[%emt 0:00:47]} 75. Ne5 {[%emt 0:00:11]} Bh7 {[%emt 0:00:34]} 76. g6 {[%emt 0:00:10]} Bg8 {[%emt 0:00:17]} 77. Ng4 {[%emt 0:02:45]} Be6 {[%emt 0:01:54]} 78. Nf6+ {[%emt 0:00:12]} Kc4 {[%emt 0:02:51]} 79. Ke5 {[%emt 0:00:07]} 1-0

[Event "WYCC 2018 O14"]
[Site "Halkidiki"]
[Date "2018.10.24"]
[Round "6"]
[White "Torngren, Gustav"]
[Black "Unneland, Mathias"]
[Result "1/2-1/2"]
[ECO "A16"]
[WhiteElo "2107"]
[BlackElo "1884"]
[Annotator "NA"]
[PlyCount "96"]
[EventDate "2018.10.20"]
[EventType "swiss"]
[EventCountry "GRE"]
[SourceTitle "playchess.com"]
[Source "ChessBase"]
[SourceQuality "1"]
[TimeControl "40/5400+30:1800+30"]

1. c4 {[%emt 0:00:00]} Nf6 {[%emt 0:00:00]} 2. Nc3 {[%emt 0:00:00]} g6 {[%emt 0:00:00]} 3. g3 {[%emt 0:00:00]} Bg7 {[%emt 0:00:00]} 4. Bg2 {[%emt 0:00:06]} d6 {[%emt 0:00:02]} 5. e4 {[%emt 0:00:05]} O-O {[%emt 0:00:32]} 6. Nge2 {[%emt 0:00:09]} c5 {[%emt 0:01:31]} 7. O-O {[%emt 0:00:38]} Nc6 {[%emt 0:01:33]} 8. a3 {[%emt 0:00:33]} Nd7 {[%emt 0:03:39]} 9. d3 {[%emt 0:01:51]} Rb8 {[%emt 0:03:40]} 10. Rb1 {[%emt 0:03:51]} a6 {[%emt 0:02:56]} 11. b4 {[%emt 0:01:23]} Nd4 {[%emt 0:04:05]} 12. Be3 {[%emt 0:05:14]} Nxe2+ {[%emt 0:06:19]} 13. Nxe2 {[%emt 0:00:04]} b5 {[%emt 0:01:00]} 14. cxb5 $14 {[%emt 0:03:14]} axb5 {[%emt 0:02:03]} 15. Qc2 {[%emt 0:03:26]} Ba6 {[%emt 0:04:18]} 16. Rfc1 {[%emt 0:04:03]} Rc8 {[%emt 0:01:17]} 17. Qd1 {[%emt 0:15:40]} e6 {[%emt 0:02:11]} 18. Bh3 {[%emt 0:06:45]} Qe7 {[%emt 0:02:49]} 19. Rc2 {[%emt 0:09:35]} Rc7 {[%emt 0:10:46]} 20. Nc3 {[%emt 0:05:22]} Rb8 {[%emt 0:06:05]} 21. f4 {[%emt 0:06:03]} Rcc8 {[%emt 0:06:32]} 22. Qd2 {[%emt 0:06:14]} Bd4 {[%emt 0:06:03]} 23. Bxd4 {[%emt 0:00:48]} cxd4 {[%emt 0:00:14]} 24. Ne2 {[%emt 0:00:17]} e5 {[%emt 0:01:57]} 25. Bxd7 {[%emt 0:01:44]} Qxd7 {[%emt 0:00:42]} 26. Rbc1 {[%emt 0:02:18]} Kg7 {[%emt 0:00:39]} 27. fxe5 {[%emt 0:03:46]} Rxc2 {[%emt 0:01:00]} 28. Rxc2 {[%emt 0:00:26]} dxe5 {[%emt 0:00:11]} 29. Rc5 {[%emt 0:02:28]} Qe6 {[%emt 0:00:56]} 30. Qc2 {[%emt 0:02:55]} Rc8 {[%emt 0:02:35]} 31. Nc1 {[%emt 0:02:17]} h5 {[%emt 0:00:58]} 32. Nb3 {[%emt 0:01:26]} h4 {[%emt 0:00:46]} 33. Qd1 {[%emt 0:07:23]} hxg3 {[%emt 0:00:52]} 34. hxg3 {[%emt 0:02:07]} Rh8 {[%emt 0:01:07]} 35. Nd2 {[%emt 0:01:47]} Qh3 {[%emt 0:01:49]} 36. Nf1 {[%emt 0:00:48]} Qh1+ {[%emt 0:00:21]} 37. Kf2 {[%emt 0:00:02]} Bc8 {[%emt 0:01:49]} 38. Qf3 {[%emt 0:00:57]} Qh3 {[%emt 0:02:11]} 39. Rxe5 {[%emt 0:02:32]} Qd7 {[%emt 0:06:09]} 40. Qf4 {[%emt 0:00:00]} Rh1 {[%emt 0:00:00]} 41. Rc5 {[%emt 0:06:38]} Qh3 {[%emt 0:06:00]} 42. Rc1 {[%emt 0:06:29]} Bg4 {[%emt 0:02:25]} 43. Ke1 {[%emt 0:02:21]} Rxf1+ {[%emt 0:05:48]} 44. Qxf1 {[%emt 0:00:08]} Qxg3+ {[%emt 0:00:07]} 45. Kd2 {[%emt 0:04:58]} Qh2+ {[%emt 0:01:48]} 46. Ke1 {[%emt 0:00:15]} Qg3+ {[%emt 0:00:13]} 47. Kd2 {[%emt 0:02:52]} Qh2+ {[%emt 0:00:14]} 48. Ke1 {[%emt 0:00:11]} Qg3+ {[%emt 0:00:06]} 1/2-1/2

[Event "WYCC 2018 O14"]
[Site "Halkidiki"]
[Date "2018.10.24"]
[Round "6"]
[White "Runets, Ivan"]
[Black "Kushagra Mohan"]
[Result "0-1"]
[ECO "A49"]
[WhiteElo "2047"]
[BlackElo "2283"]
[Annotator "NA"]
[PlyCount "82"]
[EventDate "2018.10.20"]
[EventType "swiss"]
[EventCountry "GRE"]
[SourceTitle "playchess.com"]
[Source "ChessBase"]
[SourceQuality "1"]
[TimeControl "40/5400+30:1800+30"]

1. d4 {[%emt 0:01:10]} Nf6 {[%emt 0:00:00]} 2. Nf3 {[%emt 0:00:05]} g6 {[%emt 0:00:00]} 3. g3 {[%emt 0:00:08]} Bg7 {[%emt 0:00:00]} 4. Bg2 {[%emt 0:00:07]} c5 {[%emt 0:00:00]} 5. O-O {[%emt 0:00:07]} cxd4 {[%emt 0:00:00]} 6. Nxd4 {[%emt 0:00:07]} O-O {[%emt 0:00:00]} 7. c4 {[%emt 0:00:11]} Nc6 {[%emt 0:00:00]} 8. Nc3 {[%emt 0:00:10]} Qa5 {[%emt 0:00:01]} 9. Nc2 {[%emt 0:23:36]} d6 {[%emt 0:01:01]} 10. Bd2 {[%emt 0:03:10] LiveBook: 61 Games} Qh5 {[%emt 0:01:22]} 11. b3 {[%emt 0:12:48] A38: Symmetrical English vs ...g6: 4 Bg2 Bg7 5 Nf3 Nf6} (11. e4 Ng4 12. h3 Nge5 13. Qxh5 gxh5 14. Ne3 Bxh3 15. f4 Bxg2 16. Kxg2 Ng4 17. Nf5 Bxc3 18. Bxc3 e6 19. Nxd6 {½-½ (33) Gledura,B (2613)-Markus,R (2617) Budapest 2017}) 11... Bh3 {[%emt 0:12:02]} 12. e3 $146 {[%emt 0:09:00]} ({Predecessor:} 12. Ne3 e6 13. Rc1 Bxg2 14. Nxg2 d5 15. Nf4 Qe5 16. cxd5 exd5 17. e3 Rad8 18. Qe2 Qf5 {0-1 (37) Blagojevic,D (2506)-Tadic,B (2493) Mosko 2015}) 12... Ng4 {[%emt 0:16:41]} 13. f3 {[%emt 0:08:16]} Nge5 {[%emt 0:00:46]} 14. Rb1 {[%emt 0:05:36]} Rad8 {[%emt 0:05:36]} 15. Qe2 {[%emt 0:05:11]} Bxg2 {[%emt 0:02:32]} 16. Kxg2 {[%emt 0:00:20]} f5 {[%emt 0:05:09]} 17. Nd4 {[%emt 0:08:14]} Nxd4 {[%emt 0:11:40]} 18. exd4 {[%emt 0:00:47]} Nc6 {[%emt 0:00:04]} 19. d5 {[%emt 0:00:31]} Ne5 {[%emt 0:00:16]} 20. Rbe1 {[%emt 0:05:08]} g5 {[%emt 0:04:32]} 21. f4 {[%emt 0:03:01]} Qxe2+ {[%emt 0:00:41]} 22. Rxe2 {[%emt 0:00:12]} gxf4 {[%emt 0:00:05]} 23. gxf4 {[%emt 0:01:58]} Ng6 {[%emt 0:01:52]} 24. Nb5 {[%emt 0:01:54]} a6 {[%emt 0:03:09]} 25. Nc7 {[%emt 0:01:25]} Rc8 {[%emt 0:00:18]} 26. Ne6 {[%emt 0:00:14]} Rfe8 {[%emt 0:00:01]} 27. Be3 {[%emt 0:01:21]} b5 $11 {[%emt 0:02:18]} 28. c5 {[%emt 0:02:19]} dxc5 {[%emt 0:00:43]} 29. Bxc5 {[%emt 0:00:13]} Bf6 {[%emt 0:01:09]} 30. b4 {[%emt 0:02:54]} Nf8 {[%emt 0:02:11]} 31. Nxf8 {[%emt 0:00:11]} Kxf8 {[%emt 0:03:10]} 32. Re6 {[%emt 0:00:18]} Kf7 {[%emt 0:01:31]} 33. Rxa6 {[%emt 0:00:54]} Rg8+ {[%emt 0:00:51]} 34. Kf3 {[%emt 0:00:29]} Rg4 {[%emt 0:02:49]} 35. Re1 {[%emt 0:01:10]} Rcg8 {[%emt 0:02:39]} 36. Bxe7 {[%emt 0:00:34]} Bc3 {[%emt 0:02:31]} 37. Rc1 {[%emt 0:02:43]} Bd2 {[%emt 0:01:35]} 38. Rc7 {[%emt 0:00:15]} Rxf4+ {[%emt 0:00:20]} 39. Ke2 {[%emt 0:01:03]} Rg2+ {[%emt 0:00:22]} 40. Kd3 {[%emt 0:00:00]} Rf3+ {[%emt 0:00:00]} 41. Kd4 {[%emt 0:01:34]} Be3+ {[%emt 0:00:26]} 0-1

[Event "WYCC 2018 O14"]
[Site "Halkidiki"]
[Date "2018.10.24"]
[Round "6"]
[White "Redzisz, Michal"]
[Black "Vettese, Nicholas"]
[Result "0-1"]
[ECO "A50"]
[WhiteElo "2026"]
[BlackElo "2338"]
[Annotator "NA"]
[PlyCount "46"]
[EventDate "2018.10.20"]
[EventType "swiss"]
[EventCountry "GRE"]
[SourceTitle "playchess.com"]
[Source "ChessBase"]
[SourceQuality "1"]
[TimeControl "40/5400+30:1800+30"]

1. d4 {[%emt 0:00:00]} Nf6 {[%emt 0:00:00]} 2. c4 {[%emt 0:00:00]} g6 {[%emt 0:00:00]} 3. f3 {[%emt 0:00:00]} c5 {[%emt 0:01:35]} 4. d5 {[%emt 0:04:47]} d6 {[%emt 0:08:33]} 5. Nc3 {[%emt 0:02:31]} Bg7 {[%emt 0:00:09]} 6. e4 {[%emt 0:00:14]} O-O {[%emt 0:00:38]} 7. Bd3 {[%emt 0:07:30] LiveBook: 7 Games E80: King's Indian: Sämisch: Lines without early ...0-0} (7. Bg5 h6 8. Be3 e6 9. Qd2 exd5 10. cxd5 Nh7 11. Bd3 Nd7 12. Nh3 Ne5 13. Nf2 f5 14. Be2 g5 15. exf5 Bxf5 16. h4 b5 17. hxg5 hxg5 18. Nxb5 Rb8 {0-1 (33) Najer,E (2682)-Mamedyarov,S (2772) Sochi 2017}) 7... e6 {[%emt 0:03:15]} 8. Bg5 {[%emt 0:13:23]} h6 {[%emt 0:09:24]} 9. Bh4 {[%emt 0:04:41]} exd5 {[%emt 0:02:30]} 10. exd5 {[%emt 0:00:45]} Nbd7 {[%emt 0:04:52]} 11. f4 {[%emt 0:01:42]} Qb6 $146 {[%emt 0:03:44]} ({Predecessor:} 11... a6 12. Nge2 b5 13. cxb5 Qc7 14. h3 {1-0 (58) Colon Romero,M-Campos Lopez,M Quito/Guayaquil 1969}) 12. Qc2 {[%emt 0:05:35]} Re8+ {[%emt 0:05:46]} 13. Nge2 {[%emt 0:00:55]} Ng4 {[%emt 0:00:17]} 14. Bf2 {[%emt 0:02:43]} Bd4 {[%emt 0:07:47]} 15. Bxd4 {[%emt 0:03:05]} cxd4 {[%emt 0:00:13]} 16. Nb5 {[%emt 0:04:59]} a6 {[%emt 0:02:41]} 17. Na3 {[%emt 0:08:19]} Nc5 {[%emt 0:05:22]} 18. O-O $19 {[%emt 0:04:46]} Nxd3 {[%emt 0:07:33]} 19. Qxd3 {[%emt 0:00:20]} Rxe2 {[%emt 0:00:30]} 20. b3 {[%emt 0:03:17]} Bf5 {[%emt 0:00:41]} 21. Qf3 {[%emt 0:00:51]} d3+ {[%emt 0:00:30]} 22. Kh1 {[%emt 0:00:10]} h5 {[%emt 0:03:20]} 23. c5 {[%emt 0:00:23]} Qxc5 {[%emt 0:00:23]} 0-1

[Event "WYCC 2018 O14"]
[Site "Halkidiki"]
[Date "2018.10.24"]
[Round "6"]
[White "Misyura, Ilya"]
[Black "Gharibyan, Mamikon"]
[Result "1/2-1/2"]
[ECO "E48"]
[WhiteElo "1967"]
[BlackElo "2314"]
[Annotator "ChessBase"]
[PlyCount "141"]
[EventDate "2018.10.20"]
[EventType "swiss"]
[EventCountry "GRE"]
[SourceTitle "playchess.com"]
[Source "ChessBase"]
[SourceQuality "1"]
[TimeControl "40/5400+30:1800+30"]

1. d4 {[%emt 0:00:00]} Nf6 {[%emt 0:00:00]} 2. c4 {[%emt 0:00:00]} e6 {[%emt 0:00:00]} 3. Nc3 {[%emt 0:00:00]} Bb4 {[%emt 0:00:00]} 4. e3 {[%emt 0:00:18]} O-O {[%emt 0:00:02]} 5. Bd3 {[%emt 0:00:16]} d5 {[%emt 0:00:10]} 6. cxd5 {[%emt 0:00:28]} exd5 {[%emt 0:00:46]} 7. Nge2 {[%emt 0:00:47]} b6 {[%emt 0:12:54]} 8. a3 {[%emt 0:11:55]} Bd6 {[%emt 0:01:48]} 9. b4 {[%emt 0:02:17]} Re8 {[%emt 0:03:24]} 10. O-O {[%emt 0:08:44]} Nbd7 {[%emt 0:11:09]} 11. f3 {[%emt 0:13:21]} c5 {[%emt 0:03:46]} 12. Rb1 {[%emt 0:24:28]} Nf8 {[%emt 0:05:43]} 13. bxc5 {[%emt 0:03:26]} bxc5 {[%emt 0:01:19]} 14. Nb5 {[%emt 0:04:39]} Be7 {[%emt 0:03:19]} 15. dxc5 {[%emt 0:00:38]} Bxc5 {[%emt 0:00:33]} 16. Nbd4 {[%emt 0:01:31]} Ng6 {[%emt 0:01:16]} 17. Re1 {[%emt 0:02:11]} Bd7 {[%emt 0:02:54]} 18. Bxg6 {[%emt 0:02:00]} hxg6 {[%emt 0:00:24]} 19. Qd3 {[%emt 0:01:43]} Qe7 {[%emt 0:04:01]} 20. Ng3 {[%emt 0:04:47]} Rab8 {[%emt 0:06:17]} 21. Rxb8 {[%emt 0:00:32]} Rxb8 {[%emt 0:00:06]} 22. Re2 {[%emt 0:01:29]} Rb6 {[%emt 0:17:25]} 23. Rb2 {[%emt 0:02:06]} Ne8 {[%emt 0:09:12]} 24. Rxb6 {[%emt 0:00:50]} axb6 {[%emt 0:00:25]} 25. Nge2 {[%emt 0:07:09]} Nd6 {[%emt 0:03:56]} 26. Nc3 {[%emt 0:00:52]} Qe5 {[%emt 0:00:41]} 27. f4 {[%emt 0:02:21]} Qe8 {[%emt 0:07:32]} 28. Nxd5 {[%emt 0:01:03]} Nf5 {[%emt 0:00:51]} 29. Nxf5 {[%emt 0:00:40]} gxf5 {[%emt 0:01:08]} 30. Nc3 {[%emt 0:00:30]} Bc6 {[%emt 0:00:39]} 31. Kf2 {[%emt 0:00:39]} Qc8 {[%emt 0:00:55]} 32. a4 {[%emt 0:01:11]} Bb7 {[%emt 0:00:49]} 33. Bb2 {[%emt 0:01:14]} f6 {[%emt 0:00:56]} 34. Qc4+ {[%emt 0:00:17]} Kh7 {[%emt 0:00:24]} 35. Qd3 {[%emt 0:00:29]} Kh8 {[%emt 0:00:19]} 36. Qb5 {[%emt 0:00:51]} Qe6 {[%emt 0:01:24]} 37. Bc1 {[%emt 0:00:14]} Bc6 {[%emt 0:00:22]} 38. Qd3 {[%emt 0:00:20]} Bb4 {[%emt 0:00:56]} 39. Ne2 {[%emt 0:01:22]} Bxa4 {[%emt 0:00:40]} 40. Nd4 {[%emt 0:00:00]} Qa2+ {[%emt 0:00:00]} 41. Qe2 {[%emt 0:05:36]} Qxe2+ {[%emt 0:05:50]} 42. Kxe2 {[%emt 0:00:30]} Bd7 {[%emt 0:00:05]} 43. Kd3 {[%emt 0:06:58]} Kg8 {[%emt 0:02:39]} 44. e4 {[%emt 0:01:45]} fxe4+ {[%emt 0:00:15]} 45. Kxe4 {[%emt 0:00:04]} Kf7 {[%emt 0:00:07]} 46. f5 {[%emt 0:00:32]} b5 {[%emt 0:03:00]} 47. Bb2 {[%emt 0:02:49]} Bd2 {[%emt 0:02:12]} 48. g4 {[%emt 0:02:30]} b4 {[%emt 0:00:03]} 49. Kd3 {[%emt 0:04:24]} Bf4 {[%emt 0:01:57]} 50. Kc4 {[%emt 0:00:15]} Bd6 {[%emt 0:01:08]} 51. Nc2 {[%emt 0:01:29]} Bc6 {[%emt 0:02:37]} 52. Nxb4 {[%emt 0:01:21]} Bf3 {[%emt 0:09:27]} 53. Nc2 {[%emt 0:01:31]} Bxg4 {[%emt 0:03:30]} 54. Ne3 {[%emt 0:00:43]} Be2+ {[%emt 0:03:18]} 55. Kd5 {[%emt 0:00:59]} Bxh2 {[%emt 0:00:03]} 56. Ke4 {[%emt 0:00:30]} Bd6 {[%emt 0:00:34]} 57. Bc3 {[%emt 0:01:04]} Ba6 {[%emt 0:01:10]} 58. Kf3 {[%emt 0:00:40]} Bb7+ {[%emt 0:00:26]} 59. Kg4 {[%emt 0:00:20]} Bc8 {[%emt 0:01:25]} 60. Kf3 {[%emt 0:01:59]} Bc5 {[%emt 0:00:29]} 61. Bd2 {[%emt 0:00:36]} Bxe3 {[%emt 0:00:09]} 62. Bxe3 {[%emt 0:00:05]} Bxf5 {[%emt 0:00:03]} 63. Kf4 {[%emt 0:00:17]} Bc2 {[%emt 0:00:44]} 64. Kg3 {[%emt 0:00:17]} Bd1 {[%emt 0:00:40]} 65. Bc1 {[%emt 0:00:35]} Ke6 {[%emt 0:00:24]} 66. Bd2 {[%emt 0:00:10]} Kf5 {[%emt 0:00:05]} 67. Bc1 {[%emt 0:00:06]} g5 {[%emt 0:00:30]} 68. Bd2 {[%emt 0:00:08]} Kg6 {[%emt 0:00:14]} 69. Bc1 {[%emt 0:00:11]} f5 {[%emt 0:00:04]} 70. Bd2 {[%emt 0:00:05]} f4+ {[%emt 0:00:14]} 71. Bxf4 {[%emt 0:00:05]} 1/2-1/2

[Event "WYCC 2018 O14"]
[Site "Halkidiki"]
[Date "2018.10.24"]
[Round "6"]
[White "Shermuhammadov, Samandar"]
[Black "Cohen Revivo, Shoham"]
[Result "1/2-1/2"]
[ECO "C00"]
[WhiteElo "1962"]
[BlackElo "2289"]
[Annotator "NA"]
[PlyCount "73"]
[EventDate "2018.10.20"]
[EventType "swiss"]
[EventCountry "GRE"]
[SourceTitle "playchess.com"]
[Source "ChessBase"]
[SourceQuality "1"]
[TimeControl "40/5400+30:1800+30"]

1. e4 {[%emt 0:00:00]} e6 {[%emt 0:00:00]} 2. d3 {[%emt 0:00:00]} d5 {[%emt 0:00:00]} 3. Nd2 {[%emt 0:00:00]} Nf6 {[%emt 0:00:03]} 4. Ngf3 {[%emt 0:00:00]} Nc6 {[%emt 0:00:05]} 5. c3 {[%emt 0:00:00]} e5 {[%emt 0:00:24]} 6. Be2 {[%emt 0:00:17]} Be7 {[%emt 0:01:26]} 7. O-O {[%emt 0:00:12]} O-O {[%emt 0:02:04]} 8. b4 {[%emt 0:00:08] C00: French: Unusual White 2nd moves} a6 {[%emt 0:00:08]} 9. Bb2 {[%emt 0:00:14]} Bg4 {[%emt 0:12:26]} (9... b5 10. Re1 Re8 11. a4 Rb8 12. axb5 axb5 13. Bf1 Be6 14. Ra6 {0-1 (44) Firman,N (2512)-Firat,B (2452) Rio Achaea 2018}) 10. Qc2 {[%emt 0:01:35]} Qd7 {[%emt 0:04:13]} 11. a3 {[%emt 0:00:58]} Rfe8 {[%emt 0:10:37]} 12. Rfe1 {[%emt 0:01:03]} dxe4 $146 {[%emt 0:08:02]} ({Predecessor:} 12... Rad8 13. Rad1 Qc8 14. Nf1 Bxf3 15. Bxf3 d4 {½-½ (46) Ruiz Manchon,F (2135)-Mas Recorda,P (2070) Sant Adria 2012}) 13. dxe4 {[%emt 0:00:09]} Rad8 {[%emt 0:07:06]} 14. Rad1 {[%emt 0:00:41]} Nh5 {[%emt 0:05:20]} 15. h3 {[%emt 0:03:35]} Bxf3 {[%emt 0:03:09]} 16. Nxf3 {[%emt 0:01:12]} Qe6 {[%emt 0:00:07]} 17. Rxd8 {[%emt 0:02:44]} Rxd8 {[%emt 0:00:07]} 18. Rd1 {[%emt 0:00:10]} Nf4 {[%emt 0:01:22]} 19. Bf1 {[%emt 0:00:39]} Rxd1 {[%emt 0:10:11]} 20. Qxd1 {[%emt 0:00:11]} Qd6 {[%emt 0:02:35]} 21. Qxd6 {[%emt 0:01:17]} Bxd6 {[%emt 0:00:18]} 22. c4 {[%emt 0:00:56]} f6 {[%emt 0:00:18]} 23. c5 {[%emt 0:00:27]} Be7 {[%emt 0:00:14]} 24. Bc4+ {[%emt 0:00:10]} Kf8 {[%emt 0:00:09]} 25. h4 {[%emt 0:00:36]} Ke8 {[%emt 0:07:31]} 26. g3 {[%emt 0:01:31]} Ng6 {[%emt 0:00:05]} 27. Bc3 {[%emt 0:00:52]} Nf8 {[%emt 0:01:52]} 28. Kf1 {[%emt 0:00:09]} Nb8 {[%emt 0:03:06]} 29. Nd2 {[%emt 0:00:42]} Kd7 {[%emt 0:01:54]} 30. Ke2 {[%emt 0:01:18]} b6 {[%emt 0:03:08]} 31. cxb6 {[%emt 0:00:33]} cxb6 {[%emt 0:00:04]} 32. Bd5 $11 {[%emt 0:01:23]} b5 {[%emt 0:02:03]} 33. Nb3 {[%emt 0:00:27]} Ne6 {[%emt 0:01:23]} 34. Ke3 {[%emt 0:01:07]} Nc6 {[%emt 0:02:35]} 35. f4 {[%emt 0:01:47]} Bd6 {[%emt 0:05:34]} 36. Bxc6+ {[%emt 0:09:35]} Kxc6 {[%emt 0:00:02]} 37. f5 {[%emt 0:01:27] Kd5} 1/2-1/2

[Event "WYCC 2018 O14"]
[Site "Halkidiki"]
[Date "2018.10.24"]
[Round "6"]
[White "Dao, Minh Nhat"]
[Black "Krallis, Christos"]
[Result "1-0"]
[ECO "A45"]
[WhiteElo "1956"]
[BlackElo "2139"]
[Annotator "NA"]
[PlyCount "52"]
[EventDate "2018.10.20"]
[EventType "swiss"]
[EventCountry "GRE"]
[SourceTitle "playchess.com"]
[Source "ChessBase"]
[SourceQuality "1"]
[TimeControl "40/5400+30:1800+30"]

1. d4 {[%emt 0:00:00]} Nf6 {[%emt 0:00:00]} 2. Bf4 {[%emt 0:00:00]} d5 {[%emt 0:00:00]} 3. e3 {[%emt 0:00:00]} c5 {[%emt 0:00:00]} 4. c3 {[%emt 0:01:04]} Nc6 {[%emt 0:00:00]} 5. Nd2 {[%emt 0:00:55]} e6 {[%emt 0:00:10]} 6. Ngf3 {[%emt 0:00:28]} Bd6 {[%emt 0:00:05]} 7. Bg3 {[%emt 0:01:20]} O-O {[%emt 0:00:24]} 8. Bd3 {[%emt 0:01:07]} b6 {[%emt 0:00:25]} 9. Ne5 {[%emt 0:03:49]} Bb7 {[%emt 0:00:22]} 10. f4 {[%emt 0:00:07]} Ne7 {[%emt 0:00:31]} 11. O-O {[%emt 0:01:59]} Nf5 {[%emt 0:04:53]} 12. Qf3 {[%emt 0:04:47]} Be7 {[%emt 0:05:36]} 13. Rad1 {[%emt 0:11:19]} cxd4 {[%emt 0:04:01]} 14. exd4 {[%emt 0:01:08]} g6 {[%emt 0:01:03]} 15. Qe2 {[%emt 0:26:41]} Nxg3 {[%emt 0:07:40]} 16. hxg3 {[%emt 0:00:11]} Ne8 {[%emt 0:01:44]} 17. Kf2 {[%emt 0:05:26]} Kg7 {[%emt 0:05:01]} 18. Rh1 {[%emt 0:01:21]} Rh8 {[%emt 0:00:45]} 19. Rde1 {[%emt 0:07:26]} Nd6 {[%emt 0:10:36]} 20. Qg4 {[%emt 0:07:54]} h5 {[%emt 0:07:45]} 21. Rxh5 {[%emt 0:06:41]} Rxh5 {[%emt 0:04:00]} 22. Nxf7 {[%emt 0:00:25]} Qe8 {[%emt 0:01:07]} 23. Nxd6 {[%emt 0:00:35]} Bxd6 {[%emt 0:04:24]} 24. Rxe6 {[%emt 0:00:05]} Rg5 {[%emt 0:00:17]} 25. fxg5 {[%emt 0:00:32]} Qf7+ {[%emt 0:00:40]} 26. Rf6 {[%emt 0:00:08]} Bc8 1-0